[Event "Betsys MČR v online bleskovém šachu 2021"]
[Site "Chess.com"]
[Date "2021.04.17"]
[Round "1"]
[White "fadamos"]
[Black "Cenisuh"]
[Result "1-0"]
[WhiteElo "2251"]
[BlackElo "1618"]
[TimeControl "180+1"]
[EndTime "9:02:04 PDT"]
[Termination "Uživatel fadamos zvítězil po vzdání soupeře"]

1. e4 {[%clk 0:03:00.9]} 1... c6 {[%clk 0:02:58.7]} 2. d4 {[%clk 0:03:00.7]}
2... d5 {[%clk 0:02:58.6]} 3. Nd2 {[%clk 0:03:01.4]} 3... dxe4 {[%clk
0:02:55.1]} 4. Nxe4 {[%clk 0:03:02.3]} 4... Nd7 {[%clk 0:02:52.2]} 5. Ng5 {[%clk
0:03:01.7]} 5... e6 {[%clk 0:02:49]} 6. Bd3 {[%clk 0:03:00.1]} 6... Ngf6 {[%clk
0:02:48.6]} 7. Qe2 {[%clk 0:02:56.6]} 7... Be7 {[%clk 0:02:48.6]} 8. N1f3 {[%clk
0:02:55.6]} 8... b6 {[%clk 0:02:47.2]} 9. Nxf7 {[%clk 0:02:44.2]} 9... Kxf7
{[%clk 0:02:42]} 10. Ng5+ {[%clk 0:02:41.9]} 10... Ke8 {[%clk 0:02:40.4]} 11.
Nxe6 {[%clk 0:02:41.7]} 1-0

[Event "Betsys MČR v online bleskovém šachu 2021"]
[Site "Chess.com"]
[Date "2021.04.17"]
[Round "1"]
[White "Michal5"]
[Black "BetsysBetting"]
[Result "0-1"]
[WhiteElo "1228"]
[BlackElo "2008"]
[TimeControl "180+1"]
[EndTime "9:02:13 PDT"]
[Termination "Uživatel BetsysBetting zvítězil po vzdání soupeře"]

1. e4 {[%clk 0:02:59.7]} 1... c5 {[%clk 0:02:58.7]} 2. Nf3 {[%clk 0:02:55.9]}
2... e6 {[%clk 0:02:58.6]} 3. d4 {[%clk 0:02:55.2]} 3... cxd4 {[%clk 0:02:58.6]}
4. Nxd4 {[%clk 0:02:49.4]} 4... a6 {[%clk 0:02:58.9]} 5. Nc3 {[%clk 0:02:49.3]}
5... Qc7 {[%clk 0:02:50.2]} 6. Be3 {[%clk 0:02:47.2]} 6... Bb4 {[%clk
0:02:47.2]} 7. Qd2 {[%clk 0:02:35]} 7... Nf6 {[%clk 0:02:47.1]} 8. f3 {[%clk
0:02:33.5]} 8... d5 {[%clk 0:02:46.4]} 9. exd5 {[%clk 0:02:31.1]} 9... Nxd5
{[%clk 0:02:45.5]} 10. Bc4 {[%clk 0:02:22.9]} 10... Qxc4 {[%clk 0:02:43.8]} 0-1

[Event "Betsys MČR v online bleskovém šachu 2021"]
[Site "Chess.com"]
[Date "2021.04.17"]
[Round "1"]
[White "LightningAttack_2000"]
[Black "tondapesek"]
[Result "1-0"]
[WhiteElo "1904"]
[BlackElo "995"]
[TimeControl "180+1"]
[EndTime "9:02:20 PDT"]
[Termination "Uživatel LightningAttack_2000 zvítězil po vzdání soupeře"]

1. e4 {[%clk 0:03:00.9]} 1... e5 {[%clk 0:02:59.7]} 2. Nf3 {[%clk 0:03:00.6]}
2... Nc6 {[%clk 0:02:59.9]} 3. Bb5 {[%clk 0:03:00.3]} 3... d6 {[%clk 0:02:58.7]}
4. d4 {[%clk 0:02:57.5]} 4... exd4 {[%clk 0:02:58.1]} 5. Nxd4 {[%clk 0:02:57.2]}
5... Bd7 {[%clk 0:02:58.3]} 6. Nxc6 {[%clk 0:02:56]} 6... bxc6 {[%clk
0:02:57.8]} 7. Bd3 {[%clk 0:02:55.7]} 7... Nf6 {[%clk 0:02:57.2]} 8. O-O {[%clk
0:02:55]} 8... Be7 {[%clk 0:02:56.1]} 9. f4 {[%clk 0:02:54.8]} 9... O-O {[%clk
0:02:55.5]} 10. Nc3 {[%clk 0:02:54.5]} 10... Re8 {[%clk 0:02:49.5]} 11. Qf3
{[%clk 0:02:51.2]} 11... h6 {[%clk 0:02:42.8]} 12. e5 {[%clk 0:02:48.5]} 12...
dxe5 {[%clk 0:02:41.1]} 13. fxe5 {[%clk 0:02:48.3]} 13... Nd5 {[%clk 0:02:31.6]}
14. Qxf7+ {[%clk 0:02:45.8]} 14... Kh8 {[%clk 0:02:31.6]} 15. Qg6 {[%clk
0:02:40.7]} 15... Nf6 {[%clk 0:02:29.2]} 16. exf6 {[%clk 0:02:38.7]} 1-0

[Event "Betsys MČR v online bleskovém šachu 2021"]
[Site "Chess.com"]
[Date "2021.04.17"]
[Round "1"]
[White "fera_v"]
[Black "Michaela1994"]
[Result "1-0"]
[WhiteElo "2245"]
[BlackElo "1617"]
[TimeControl "180+1"]
[EndTime "9:02:31 PDT"]
[Termination "Uživatel fera_v zvítězil po vzdání soupeře"]

1. e4 {[%clk 0:02:59.9]} 1... e6 {[%clk 0:02:59.2]} 2. d4 {[%clk 0:02:58.7]}
2... d5 {[%clk 0:02:59.1]} 3. e5 {[%clk 0:02:59.2]} 3... c5 {[%clk 0:02:59.1]}
4. Qg4 {[%clk 0:02:59.7]} 4... Nc6 {[%clk 0:02:56.4]} 5. Nf3 {[%clk 0:03:00.1]}
5... Qb6 {[%clk 0:02:52.8]} 6. Bd3 {[%clk 0:02:58.1]} 6... Nge7 {[%clk
0:02:51.6]} 7. O-O {[%clk 0:02:57.1]} 7... Ng6 {[%clk 0:02:46.5]} 8. Re1 {[%clk
0:02:54.1]} 8... Be7 {[%clk 0:02:45.3]} 9. h4 {[%clk 0:02:53.6]} 9... cxd4
{[%clk 0:02:37.1]} 10. h5 {[%clk 0:02:52.3]} 10... Qc7 {[%clk 0:02:07.7]} 11.
hxg6 {[%clk 0:02:51]} 11... hxg6 {[%clk 0:02:07.7]} 12. a3 {[%clk 0:02:48.4]}
12... Nxe5 {[%clk 0:02:04.1]} 13. Nxe5 {[%clk 0:02:47.4]} 13... Qxe5 {[%clk
0:02:03.2]} 14. Rxe5 {[%clk 0:02:46.4]} 1-0

[Event "Betsys MČR v online bleskovém šachu 2021"]
[Site "Chess.com"]
[Date "2021.04.17"]
[Round "1"]
[White "MichalTrhal"]
[Black "Hollow_Head"]
[Result "1-0"]
[WhiteElo "1925"]
[BlackElo "1045"]
[TimeControl "180+1"]
[EndTime "9:02:48 PDT"]
[Termination "Uživatel MichalTrhal zvítězil matem"]

1. e4 {[%clk 0:02:57.8]} 1... e5 {[%clk 0:02:59.5]} 2. Nf3 {[%clk 0:02:57.2]}
2... Nc6 {[%clk 0:02:59.9]} 3. Bb5 {[%clk 0:02:56.9]} 3... Nd4 {[%clk
0:03:00.5]} 4. Bc4 {[%clk 0:02:56.2]} 4... Nxf3+ {[%clk 0:02:59]} 5. Qxf3 {[%clk
0:02:55.5]} 5... Nf6 {[%clk 0:02:59.6]} 6. Nc3 {[%clk 0:02:53.3]} 6... Be7
{[%clk 0:02:59.7]} 7. h3 {[%clk 0:02:48.1]} 7... O-O {[%clk 0:03:00]} 8. d3
{[%clk 0:02:47.1]} 8... d6 {[%clk 0:02:59.1]} 9. Bd2 {[%clk 0:02:40.3]} 9... h6
{[%clk 0:02:59.1]} 10. g4 {[%clk 0:02:34.8]} 10... Bd7 {[%clk 0:02:52.4]} 11. g5
{[%clk 0:02:34.3]} 11... Nh7 {[%clk 0:02:44.7]} 12. gxh6 {[%clk 0:02:32.8]}
12... g6 {[%clk 0:02:44.1]} 13. Rg1 {[%clk 0:02:25.9]} 13... Ng5 {[%clk
0:02:43.4]} 14. Bxg5 {[%clk 0:02:10.3]} 14... Bxg5 {[%clk 0:02:41.6]} 15. Qg3
{[%clk 0:02:07.1]} 15... Bxh6 {[%clk 0:02:40.7]} 16. Qxg6+ {[%clk 0:02:06.3]}
16... Kh8 {[%clk 0:02:33.3]} 17. Qxh6# {[%clk 0:02:06.2]} 1-0

[Event "Betsys MČR v online bleskovém šachu 2021"]
[Site "Chess.com"]
[Date "2021.04.17"]
[Round "1"]
[White "Tolja1"]
[Black "Richter_Rudolf"]
[Result "1-0"]
[WhiteElo "2032"]
[BlackElo "1309"]
[TimeControl "180+1"]
[EndTime "9:03:11 PDT"]
[Termination "Uživatel Tolja1 zvítězil po vzdání soupeře"]

1. Nf3 {[%clk 0:03:00.9]} 1... d5 {[%clk 0:02:56.7]} 2. c4 {[%clk 0:02:58.4]}
2... Nf6 {[%clk 0:02:45.1]} 3. cxd5 {[%clk 0:02:57]} 3... Nxd5 {[%clk
0:02:44.7]} 4. e4 {[%clk 0:02:56.4]} 4... Nf6 {[%clk 0:02:44]} 5. Nc3 {[%clk
0:02:55.5]} 5... Nc6 {[%clk 0:02:41.7]} 6. d4 {[%clk 0:02:52.1]} 6... Bg4 {[%clk
0:02:41.6]} 7. Be3 {[%clk 0:02:49.7]} 7... Bxf3 {[%clk 0:02:34.5]} 8. gxf3
{[%clk 0:02:48.9]} 8... e5 {[%clk 0:02:34.2]} 9. d5 {[%clk 0:02:43]} 9... Ne7
{[%clk 0:02:27.7]} 10. Bb5+ {[%clk 0:02:13.5]} 10... c6 {[%clk 0:02:26]} 11.
dxc6 {[%clk 0:02:10.2]} 11... b6 {[%clk 0:02:26]} 12. c7+ {[%clk 0:01:50]} 1-0

[Event "Betsys MČR v online bleskovém šachu 2021"]
[Site "Chess.com"]
[Date "2021.04.17"]
[Round "1"]
[White "starypomalymuz"]
[Black "Herracek"]
[Result "0-1"]
[WhiteElo "1801"]
[BlackElo "2614"]
[TimeControl "180+1"]
[EndTime "9:03:13 PDT"]
[Termination "Uživatel Herracek zvítězil po vzdání soupeře"]

1. e4 {[%clk 0:02:56.9]} 1... c5 {[%clk 0:02:59.4]} 2. g3 {[%clk 0:02:56.2]}
2... Nc6 {[%clk 0:03:00]} 3. Bg2 {[%clk 0:02:56.4]} 3... g6 {[%clk 0:03:00.5]}
4. Ne2 {[%clk 0:02:55.6]} 4... Bg7 {[%clk 0:02:59.7]} 5. c3 {[%clk 0:02:56.1]}
5... d6 {[%clk 0:03:00.1]} 6. O-O {[%clk 0:02:56.5]} 6... Bg4 {[%clk 0:02:59.4]}
7. h3 {[%clk 0:02:44.6]} 7... Bd7 {[%clk 0:02:59.1]} 8. d4 {[%clk 0:02:42.4]}
8... Qc8 {[%clk 0:02:59.4]} 9. Kh2 {[%clk 0:02:39.5]} 9... h5 {[%clk 0:02:54.3]}
10. f4 {[%clk 0:02:32.4]} 10... Nh6 {[%clk 0:02:43.9]} 11. d5 {[%clk 0:02:30.8]}
11... Na5 {[%clk 0:02:43.2]} 12. Nd2 {[%clk 0:02:27.2]} 12... b5 {[%clk
0:02:42.7]} 13. b4 {[%clk 0:02:16.7]} 13... cxb4 {[%clk 0:02:36.9]} 14. Nb3
{[%clk 0:02:12.3]} 14... Nxb3 {[%clk 0:02:33.9]} 15. axb3 {[%clk 0:02:12.5]}
15... bxc3 {[%clk 0:02:34]} 16. Qc2 {[%clk 0:02:10.2]} 16... Qc5 {[%clk
0:02:23.6]} 17. Rf3 {[%clk 0:02:02.4]} 17... Ng4+ {[%clk 0:02:20.1]} 18. hxg4
{[%clk 0:01:59.3]} 18... hxg4+ {[%clk 0:02:21]} 0-1

[Event "Betsys MČR v online bleskovém šachu 2021"]
[Site "Chess.com"]
[Date "2021.04.17"]
[Round "1"]
[White "Daffac"]
[Black "Patrik_Kohm"]
[Result "1-0"]
[WhiteElo "2074"]
[BlackElo "1355"]
[TimeControl "180+1"]
[EndTime "9:03:26 PDT"]
[Termination "Uživatel Daffac zvítězil po vzdání soupeře"]

1. d4 {[%clk 0:02:58.2]} 1... d5 {[%clk 0:02:58]} 2. Nf3 {[%clk 0:02:58.1]} 2...
Nf6 {[%clk 0:02:57.2]} 3. Bf4 {[%clk 0:02:58.3]} 3... Nc6 {[%clk 0:02:54.3]} 4.
e3 {[%clk 0:02:58.4]} 4... Bd7 {[%clk 0:02:53.1]} 5. c4 {[%clk 0:02:58.1]} 5...
e6 {[%clk 0:02:52.8]} 6. Nc3 {[%clk 0:02:57.3]} 6... Bb4 {[%clk 0:02:49.3]} 7.
Bd3 {[%clk 0:02:53.1]} 7... Bxc3+ {[%clk 0:02:45.9]} 8. bxc3 {[%clk 0:02:52.5]}
8... O-O {[%clk 0:02:45.7]} 9. O-O {[%clk 0:02:51.6]} 9... Nh5 {[%clk
0:02:42.7]} 10. Bg5 {[%clk 0:02:48.8]} 10... Nf6 {[%clk 0:02:39.8]} 11. Rb1
{[%clk 0:02:45.7]} 11... h6 {[%clk 0:02:39.5]} 12. Bh4 {[%clk 0:02:44.7]} 12...
Rb8 {[%clk 0:02:35.3]} 13. c5 {[%clk 0:02:29.5]} 13... b6 {[%clk 0:02:31.9]} 14.
cxb6 {[%clk 0:02:27.5]} 14... axb6 {[%clk 0:02:32.8]} 15. Bc2 {[%clk 0:02:25.9]}
15... Na5 {[%clk 0:02:29.5]} 16. Qd3 {[%clk 0:02:25.6]} 16... g6 {[%clk
0:02:19.1]} 17. Ne5 {[%clk 0:02:24.6]} 17... Kg7 {[%clk 0:02:15.3]} 18. Nxg6
{[%clk 0:02:18.8]} 18... Nc4 {[%clk 0:02:04.5]} 19. Nf4 {[%clk 0:02:10.4]} 1-0

[Event "Betsys MČR v online bleskovém šachu 2021"]
[Site "Chess.com"]
[Date "2021.04.17"]
[Round "1"]
[White "machonza"]
[Black "Hroch_Hippo"]
[Result "1-0"]
[WhiteElo "1943"]
[BlackElo "1079"]
[TimeControl "180+1"]
[EndTime "9:03:26 PDT"]
[Termination "Uživatel machonza zvítězil matem"]

1. e4 {[%clk 0:03:00.3]} 1... e5 {[%clk 0:02:59.2]} 2. Nf3 {[%clk 0:02:59.7]}
2... Nc6 {[%clk 0:02:59.2]} 3. Bb5 {[%clk 0:02:59.6]} 3... d6 {[%clk 0:02:58.2]}
4. c3 {[%clk 0:02:57.5]} 4... a6 {[%clk 0:02:57]} 5. Ba4 {[%clk 0:02:55.2]} 5...
Bd7 {[%clk 0:02:57.6]} 6. O-O {[%clk 0:02:53.6]} 6... Nb8 {[%clk 0:02:55.3]} 7.
Bc2 {[%clk 0:02:51.2]} 7... Bc6 {[%clk 0:02:51.1]} 8. d4 {[%clk 0:02:50.6]} 8...
exd4 {[%clk 0:02:50.7]} 9. cxd4 {[%clk 0:02:49]} 9... d5 {[%clk 0:02:50.3]} 10.
e5 {[%clk 0:02:46.3]} 10... Bb4 {[%clk 0:02:48]} 11. a3 {[%clk 0:02:44.4]} 11...
Be7 {[%clk 0:02:44.5]} 12. Nc3 {[%clk 0:02:42.3]} 12... f6 {[%clk 0:02:43.5]}
13. Re1 {[%clk 0:02:34.8]} 13... fxe5 {[%clk 0:02:34.3]} 14. Nxe5 {[%clk
0:02:32.8]} 14... Nf6 {[%clk 0:02:32.1]} 15. Qf3 {[%clk 0:02:21]} 15... O-O
{[%clk 0:02:29.6]} 16. Qh3 {[%clk 0:02:20.5]} 16... Qd6 {[%clk 0:02:20.6]} 17.
Bg5 {[%clk 0:02:16.6]} 17... Bb5 {[%clk 0:01:55]} 18. Bxf6 {[%clk 0:02:13.9]}
18... Bxf6 {[%clk 0:01:52.8]} 19. Qxh7# {[%clk 0:02:12.7]} 1-0

[Event "Betsys MČR v online bleskovém šachu 2021"]
[Site "Chess.com"]
[Date "2021.04.17"]
[Round "1"]
[White "JindrichT_JR_CZE"]
[Black "Listro33"]
[Result "0-1"]
[WhiteElo "914"]
[BlackElo "1889"]
[TimeControl "180+1"]
[EndTime "9:03:29 PDT"]
[Termination "Uživatel Listro33 zvítězil po vzdání soupeře"]

1. e4 {[%clk 0:03:00.1]} 1... c6 {[%clk 0:02:58.7]} 2. d4 {[%clk 0:02:57.7]}
2... d5 {[%clk 0:02:54.3]} 3. e5 {[%clk 0:02:56.5]} 3... Bf5 {[%clk 0:02:52]} 4.
Bd3 {[%clk 0:02:55]} 4... Bxd3 {[%clk 0:02:48.5]} 5. Qxd3 {[%clk 0:02:54.7]}
5... e6 {[%clk 0:02:48.3]} 6. Nf3 {[%clk 0:02:54.3]} 6... Ne7 {[%clk 0:02:44.2]}
7. b3 {[%clk 0:02:54.1]} 7... Qa5+ {[%clk 0:02:41.3]} 8. Bd2 {[%clk 0:02:51.9]}
8... Qa6 {[%clk 0:02:41.2]} 9. Qxa6 {[%clk 0:02:50.7]} 9... Nxa6 {[%clk
0:02:40.8]} 10. O-O {[%clk 0:02:49.7]} 10... c5 {[%clk 0:02:40.2]} 11. dxc5
{[%clk 0:02:47.2]} 11... Nxc5 {[%clk 0:02:39.2]} 12. Bb4 {[%clk 0:02:45.6]}
12... Nc6 {[%clk 0:02:37.8]} 13. Bxc5 {[%clk 0:02:45]} 13... Bxc5 {[%clk
0:02:37]} 14. Nc3 {[%clk 0:02:42.9]} 14... O-O {[%clk 0:02:33.7]} 15. Rad1
{[%clk 0:02:34.3]} 15... Rac8 {[%clk 0:02:31]} 16. Na4 {[%clk 0:02:30.4]} 16...
Be7 {[%clk 0:02:24.3]} 17. Nd4 {[%clk 0:02:24.4]} 17... Nxd4 {[%clk 0:02:13.2]}
18. Rxd4 {[%clk 0:02:18.4]} 18... Rxc2 {[%clk 0:02:12.6]} 19. Ra1 {[%clk
0:02:09.7]} 19... Rfc8 {[%clk 0:02:09.7]} 20. Rdd1 {[%clk 0:02:05.4]} 20... b5
{[%clk 0:02:07]} 0-1

[Event "Betsys MČR v online bleskovém šachu 2021"]
[Site "Chess.com"]
[Date "2021.04.17"]
[Round "1"]
[White "misacz"]
[Black "Pokemonchess"]
[Result "0-1"]
[WhiteElo "1079"]
[BlackElo "1942"]
[TimeControl "180+1"]
[EndTime "9:03:31 PDT"]
[Termination "Uživatel Pokemonchess zvítězil po vzdání soupeře"]

1. d4 {[%clk 0:03:00.9]} 1... Nf6 {[%clk 0:02:58.6]} 2. c4 {[%clk 0:03:00.3]}
2... g6 {[%clk 0:02:57.6]} 3. Nf3 {[%clk 0:02:58.9]} 3... Bg7 {[%clk 0:02:57.3]}
4. Nc3 {[%clk 0:02:58.5]} 4... d5 {[%clk 0:02:57.6]} 5. e3 {[%clk 0:02:58.3]}
5... O-O {[%clk 0:02:57.1]} 6. Bd2 {[%clk 0:02:57.2]} 6... c6 {[%clk 0:02:56.7]}
7. cxd5 {[%clk 0:02:56.9]} 7... cxd5 {[%clk 0:02:57.4]} 8. Bd3 {[%clk
0:02:56.4]} 8... Nc6 {[%clk 0:02:57]} 9. O-O {[%clk 0:02:56.1]} 9... Bg4 {[%clk
0:02:45.5]} 10. Qe2 {[%clk 0:02:53.7]} 10... e5 {[%clk 0:02:35.5]} 11. e4 {[%clk
0:02:51.9]} 11... Nxd4 {[%clk 0:02:32.3]} 12. Nxd5 {[%clk 0:02:37.6]} 12...
Nxe2+ {[%clk 0:02:30.2]} 13. Bxe2 {[%clk 0:02:34]} 13... Nxd5 {[%clk 0:02:27.6]}
14. exd5 {[%clk 0:02:33.8]} 14... Qxd5 {[%clk 0:02:26.2]} 15. h3 {[%clk
0:02:33.6]} 15... Bxf3 {[%clk 0:02:23]} 16. Bxf3 {[%clk 0:02:34.5]} 16... Qxd2
{[%clk 0:02:20.4]} 17. Rfd1 {[%clk 0:02:34.6]} 17... Qxb2 {[%clk 0:02:14.2]} 18.
Rdb1 {[%clk 0:02:33.9]} 18... Qa3 {[%clk 0:02:09.2]} 19. Rb3 {[%clk 0:02:33.4]}
19... Qxb3 {[%clk 0:02:07.8]} 20. axb3 {[%clk 0:02:32.9]} 20... e4 {[%clk
0:02:08.7]} 21. Bxe4 {[%clk 0:02:32.4]} 21... Bxa1 {[%clk 0:02:06.4]} 22. Bxb7
{[%clk 0:02:32]} 22... Rab8 {[%clk 0:02:06]} 23. Bf3 {[%clk 0:02:29.8]} 23...
Rxb3 {[%clk 0:02:05.3]} 24. Bd5 {[%clk 0:02:29.2]} 24... Rb1+ {[%clk 0:02:04.6]}
25. Kh2 {[%clk 0:02:29.5]} 25... Rd8 {[%clk 0:02:04.3]} 26. Bf3 {[%clk
0:02:28.4]} 26... a5 {[%clk 0:02:03.2]} 27. Be4 {[%clk 0:02:28.8]} 27... Re1
{[%clk 0:02:01]} 28. Bf3 {[%clk 0:02:28.4]} 28... a4 {[%clk 0:02:00.3]} 0-1

[Event "Betsys MČR v online bleskovém šachu 2021"]
[Site "Chess.com"]
[Date "2021.04.17"]
[Round "1"]
[White "tiger196223"]
[Black "Figo5144"]
[Result "1-0"]
[WhiteElo "1851"]
[BlackElo "569"]
[TimeControl "180+1"]
[EndTime "9:03:33 PDT"]
[Termination "Uživatel tiger196223 zvítězil matem"]

1. d4 {[%clk 0:03:00.3]} 1... d6 {[%clk 0:02:59]} 2. Nf3 {[%clk 0:03:00.1]} 2...
Nc6 {[%clk 0:02:58.4]} 3. Bg5 {[%clk 0:02:59.6]} 3... Nf6 {[%clk 0:02:56.7]} 4.
Nbd2 {[%clk 0:02:58.2]} 4... h6 {[%clk 0:02:56.4]} 5. Bh4 {[%clk 0:02:55.2]}
5... Bd7 {[%clk 0:02:54.5]} 6. c3 {[%clk 0:02:54.8]} 6... e6 {[%clk 0:02:54.2]}
7. e3 {[%clk 0:02:54.4]} 7... Be7 {[%clk 0:02:53.9]} 8. Bd3 {[%clk 0:02:53.3]}
8... O-O {[%clk 0:02:53.8]} 9. Qc2 {[%clk 0:02:52.1]} 9... g5 {[%clk 0:02:52.4]}
10. Bg3 {[%clk 0:02:51.1]} 10... g4 {[%clk 0:02:39.1]} 11. Ng1 {[%clk
0:02:48.3]} 11... a6 {[%clk 0:02:35.8]} 12. h3 {[%clk 0:02:47.5]} 12... b5
{[%clk 0:02:32.1]} 13. hxg4 {[%clk 0:02:34.9]} 13... Nxg4 {[%clk 0:02:31.2]} 14.
Be4 {[%clk 0:02:29.5]} 14... d5 {[%clk 0:02:30]} 15. Bf3 {[%clk 0:02:28.9]}
15... Nf6 {[%clk 0:02:25.4]} 16. Rxh6 {[%clk 0:02:26]} 16... Nb4 {[%clk
0:02:17.7]} 17. cxb4 {[%clk 0:02:22]} 17... Bxb4 {[%clk 0:02:17.3]} 18. Bh4
{[%clk 0:02:15]} 18... Ne4 {[%clk 0:02:12.9]} 19. Bxd8 {[%clk 0:02:11.2]} 19...
Raxd8 {[%clk 0:02:11.8]} 20. Bxe4 {[%clk 0:02:08.3]} 20... dxe4 {[%clk 0:02:09]}
21. Qxe4 {[%clk 0:02:07.8]} 21... Be7 {[%clk 0:02:01.9]} 22. Qh7# {[%clk
0:02:04.2]} 1-0

[Event "Betsys MČR v online bleskovém šachu 2021"]
[Site "Chess.com"]
[Date "2021.04.17"]
[Round "1"]
[White "Hanicka1517"]
[Black "Trener-Pokrocili"]
[Result "0-1"]
[WhiteElo "1609"]
[BlackElo "2242"]
[TimeControl "180+1"]
[EndTime "9:03:36 PDT"]
[Termination "Uživatel Trener-Pokrocili zvítězil matem"]

1. d4 {[%clk 0:03:00.9]} 1... Nf6 {[%clk 0:02:55.3]} 2. c4 {[%clk 0:03:00.6]}
2... c5 {[%clk 0:02:55]} 3. Nf3 {[%clk 0:02:59.8]} 3... cxd4 {[%clk 0:02:54.8]}
4. Nxd4 {[%clk 0:02:59.9]} 4... e5 {[%clk 0:02:54.5]} 5. Nb5 {[%clk 0:02:59.9]}
5... d5 {[%clk 0:02:54.2]} 6. cxd5 {[%clk 0:02:56.7]} 6... Bc5 {[%clk
0:02:53.7]} 7. e3 {[%clk 0:02:54.6]} 7... O-O {[%clk 0:02:52.9]} 8. Be2 {[%clk
0:02:48.4]} 8... Re8 {[%clk 0:02:48.5]} 9. N5c3 {[%clk 0:02:45.8]} 9... e4
{[%clk 0:02:47.6]} 10. O-O {[%clk 0:02:46.1]} 10... Bf5 {[%clk 0:02:46.9]} 11.
a3 {[%clk 0:02:43.3]} 11... a6 {[%clk 0:02:46.5]} 12. b4 {[%clk 0:02:43.2]}
12... Ba7 {[%clk 0:02:46.6]} 13. Bb2 {[%clk 0:02:43.3]} 13... Nbd7 {[%clk
0:02:45.7]} 14. Na4 {[%clk 0:02:39.7]} 14... Rc8 {[%clk 0:02:39.2]} 15. Nbc3
{[%clk 0:02:39.1]} 15... Ne5 {[%clk 0:02:35.7]} 16. Rc1 {[%clk 0:02:31]} 16...
Qd6 {[%clk 0:02:31]} 17. Qb3 {[%clk 0:02:22]} 17... Bb8 {[%clk 0:02:22.2]} 18.
b5 {[%clk 0:02:01.3]} 18... Nf3+ {[%clk 0:01:58]} 19. Bxf3 {[%clk 0:02:00.2]}
19... Qxh2# {[%clk 0:01:56.9]} 0-1

[Event "Betsys MČR v online bleskovém šachu 2021"]
[Site "Chess.com"]
[Date "2021.04.17"]
[Round "1"]
[White "DenryS"]
[Black "handlovskyjachym"]
[Result "1-0"]
[WhiteElo "2096"]
[BlackElo "1406"]
[TimeControl "180+1"]
[EndTime "9:03:38 PDT"]
[Termination "Uživatel DenryS zvítězil matem"]

1. d4 {[%clk 0:02:58.9]} 1... d5 {[%clk 0:02:59.3]} 2. Nf3 {[%clk 0:02:58.9]}
2... Nf6 {[%clk 0:02:57.6]} 3. Bf4 {[%clk 0:02:59.8]} 3... Nbd7 {[%clk
0:02:57.2]} 4. e3 {[%clk 0:02:58.9]} 4... e6 {[%clk 0:02:55.1]} 5. Bd3 {[%clk
0:02:58.8]} 5... Be7 {[%clk 0:02:55]} 6. Nbd2 {[%clk 0:02:58.3]} 6... O-O {[%clk
0:02:54.6]} 7. Ne5 {[%clk 0:02:59.2]} 7... b6 {[%clk 0:02:50.5]} 8. Qf3 {[%clk
0:02:58.8]} 8... Bb7 {[%clk 0:02:49.2]} 9. Qh3 {[%clk 0:02:58.4]} 9... g6 {[%clk
0:02:35.4]} 10. Ndf3 {[%clk 0:02:52.9]} 10... Nh5 {[%clk 0:02:34.9]} 11. Bh6
{[%clk 0:02:50.3]} 11... Nxe5 {[%clk 0:02:24.4]} 12. Nxe5 {[%clk 0:02:40.2]}
12... Re8 {[%clk 0:02:20.4]} 13. Qf3 {[%clk 0:02:31.8]} 13... f5 {[%clk
0:02:15.9]} 14. g4 {[%clk 0:02:23.4]} 14... Nf6 {[%clk 0:02:10.6]} 15. gxf5
{[%clk 0:02:21.9]} 15... exf5 {[%clk 0:02:09.8]} 16. Rg1 {[%clk 0:02:21.3]}
16... Ne4 {[%clk 0:02:05]} 17. Qxf5 {[%clk 0:02:06.9]} 17... Bc8 {[%clk
0:01:57.4]} 18. Rxg6+ {[%clk 0:02:03.4]} 18... hxg6 {[%clk 0:01:55.3]} 19. Qxg6+
{[%clk 0:02:03.5]} 19... Kh8 {[%clk 0:01:52.7]} 20. Qg7# {[%clk 0:02:02.6]} 1-0

[Event "Betsys MČR v online bleskovém šachu 2021"]
[Site "Chess.com"]
[Date "2021.04.17"]
[Round "1"]
[White "JonasFadrny"]
[Black "sachmaty8"]
[Result "0-1"]
[WhiteElo "757"]
[BlackElo "1860"]
[TimeControl "180+1"]
[EndTime "9:03:44 PDT"]
[Termination "Uživatel sachmaty8 zvítězil matem"]

1. e4 {[%clk 0:02:58.8]} 1... e6 {[%clk 0:02:58]} 2. Nf3 {[%clk 0:02:59.2]} 2...
d5 {[%clk 0:02:56.9]} 3. e5 {[%clk 0:02:57.5]} 3... c5 {[%clk 0:02:54.4]} 4. Nc3
{[%clk 0:02:57.5]} 4... Nc6 {[%clk 0:02:50]} 5. Bb5 {[%clk 0:02:56.7]} 5... Bd7
{[%clk 0:02:32.1]} 6. Bxc6 {[%clk 0:02:56.7]} 6... Bxc6 {[%clk 0:02:31.9]} 7.
O-O {[%clk 0:02:55.8]} 7... Qb6 {[%clk 0:02:31.8]} 8. b3 {[%clk 0:02:55]} 8...
Be7 {[%clk 0:02:28.8]} 9. Bb2 {[%clk 0:02:51.9]} 9... d4 {[%clk 0:02:26.2]} 10.
Ne2 {[%clk 0:02:48.9]} 10... h5 {[%clk 0:02:22.1]} 11. Nf4 {[%clk 0:02:46.7]}
11... Nh6 {[%clk 0:02:20.9]} 12. Nxh5 {[%clk 0:02:44.5]} 12... Nf5 {[%clk
0:01:52.3]} 13. c4 {[%clk 0:02:40.9]} 13... Rxh5 {[%clk 0:01:50.3]} 14. Rc1
{[%clk 0:02:35.7]} 14... O-O-O {[%clk 0:01:35.6]} 15. Qe1 {[%clk 0:02:30.5]}
15... Rdh8 {[%clk 0:01:32]} 16. h3 {[%clk 0:02:28.8]} 16... Bxf3 {[%clk
0:01:30.2]} 17. gxf3 {[%clk 0:02:27.2]} 17... Rxh3 {[%clk 0:01:30.7]} 18. d3
{[%clk 0:02:18.6]} 18... Rh1+ {[%clk 0:01:29.9]} 19. Kg2 {[%clk 0:02:18.1]}
19... R8h2# {[%clk 0:01:30.6]} 0-1